{"text_format":"1","workbook":"xlsx","n_sheets":6,"sheets":["Instructions","Section 1","Section 2","Section 3","Reference List","Lists"],"not_rendered":{"charts":0,"images":0,"macros":1,"external_links":1,"defined_names":16,"comments":0,"pivot_tables":0},"unopened":[],"bounds":{"document_bytes":16777216,"sheet_cells":100000,"rows_first":2000,"rows_last":500,"rows_between":2000,"halvings":0,"cell_chars":16384,"cell_head_chars":4096},"cells_cut":0,"cells_raw":0,"read":"whole","date_system":"1900"}

{"sheet":"Instructions","index":0,"n_rows":20,"n_cols":3,"rows_kept":20,"cut":false,"hidden":false,"merged":[]}
[]
[null,null,"OMB Control Number: xxxx-xxxx"]
[null,null,"Expiration Date: xx/xx/xxxx"]
[]
[null,null,"U.S. Environmental Protection Agency "]
[null,null,"Stratospheric Ozone Protection Program"]
[]
[null,null,"Class I Process Agent One-Time Report (Sec 82.13)"]
[null,null,"Version 1.0"]
[null,null,"Last Updated: November 2024"]
[]
[null,null,"Instructions"]
[null,null,"Complete and submit a Class I ODS Process Agent One-Time Report if your company uses regulated Class I ODS as process agents. Please provide information for only one facility per reporting form. "]
[null,null,"Complete this form by filling in the data fields that are highlighted in blue.  Guidance on how to complete individual data fields are provided in comment bubbles. Use the arrows to navigate between the tabs."]
[null,null,"Report Submission: This Excel file and all supporting attachments should be submitted to EPA through the Central Data Exchange (CDX) Other Documents submission flow. Refer to EPA's website for additional information on form submission:"]
[null,null,"https://www.epa.gov/ods-phaseout/ods-recordkeeping-and-reporting"]
[]
[null,null,"This collection of information is approved by OMB under the Paperwork Reduction Act, 44 U.S.C. 3501 et seq. (OMB Control No. XXXX-XXXX). Responses to this collection of information are mandatory (40 CFR 82.13). An agency may not conduct or sponsor, and a person is not required to respond to, a collection of information unless it displays a currently valid OMB control number. The number and expiration date are displayed in the upper right corner of the form. The public reporting and recordkeeping burden for this collection of information is estimated to be X hours per response. Send comments on the Agency’s need this formation, the accuracy of the provided burden estimates and any suggested methods for minimizing respondent burden including through the use of automated collection techniques to the Director, Regulatory Support Division, U.S. Environmental Protection Agency (2821T), 1200 Pennsylvania Ave., NW, Washington, D.C. 20460.  Include the OMB control number in any correspondence.  Do not send the completed form to this address."]
[]
[null,null,"EPA Form #xxxx-xxx"]

{"sheet":"Section 1","index":1,"n_rows":19,"n_cols":8,"rows_kept":19,"cut":false,"hidden":false,"merged":[[6,2,6,4],[14,3,14,4],[15,3,15,4],[16,3,16,4],[13,3,13,4],[8,3,8,4],[9,3,9,4],[10,3,10,4],[11,3,11,4],[12,3,12,4],[7,3,7,4]]}
[]
[null,null,"U.S. Environmental Protection Agency"]
[null,null,"Class I Process Agent One-Time Report"]
[]
[]
[null,null,"Section 1: Report Identification Information "]
[null,null,"Complete all fields below for each facility in which the process agent was used.  No fields may be left blank."]
[null,null,"Date Prepared:",null,null,{"$f":"IF(D8=0,1,0)","v":1}]
[null,null,"Company Name:",null,null,{"$f":"IF(D9=0,1,0)","v":1}]
[null,null,"Submission Type:",null,null,{"$f":"IF(D10=0,1,0)","v":1},null,{"$f":"IF(SubTSelection=\"\",\"\",IF(OR(SubTSelection=Lists!C3,SubTSelection=Lists!C4),\"\",\"PLEASE SELECT A VALID SUBMISSION TYPE FROM THE DROPDOWN LIST\"))","v":""}]
[null,null,"Reporting Year:",null,null,1,null,{"$f":"IF(D11>YEAR(TODAY()),\"PLEASE CHOOSE A CURRENT OR PAST YEAR\",\"\")","v":""}]
[null,null,"Facility Name: ",null,null,1]
[null,null,"Facility Street Address:",null,null,1]
[null,null,"Facility City:",null,null,1,null,{"$f":"IF(D14>(TODAY()),\"PLEASE CHOOSE A DATE PRIOR TO THIS REPORT\",\"\")","v":""}]
[null,null,"Facility State: ",null,null,1]
[null,null,"Facility Zip Code:",null,null,1]
[null,null,"Facility Start Up Date: ",null,null,1]
[]
[null,null,"Plant Name","Plant Address","Plant Start Up Date"]

{"sheet":"Section 2","index":2,"n_rows":21,"n_cols":14,"rows_kept":21,"cut":false,"hidden":false,"merged":[[8,3,8,8],[9,3,9,8]]}
[]
[null,null,null,"U.S. Environmental Protection Agency"]
[null,null,null,{"$f":"'Section 1'!C3","v":"Class I Process Agent One-Time Report"}]
[]
[null,null,null,"Faclity Name:",{"$f":"IF('Section 1'!$D$12=0,\"\",'Section 1'!$D$12)","v":""}]
[null,null,null,"Reporting Period:",{"$f":"IF('Section 1'!D11=0,\"\",'Section 1'!$D$11)","v":""}]
[]
[null,null,null,"Section 2: Class I Substance Use Information "]
[null,null,null,"Complete all fields below for each process agent use of a Class I controlled substance.  No fields may be left blank."]
[null,null,null,"If copying and pasting data into the table, please refer to the Reference List and the accompanying instructions."]
[null,null,null,"Process Agent Use Information"]
[null,null,null,null,"Process Agent Name\n82.13(ee)(1)(ii)","Purpose\n82.13(ee)(1)(ii)","Total Air Emissions\n(kg)\n82.13(ee)(1)(v)","Fugitive Air Emissions\n(kg)\n82.13(ee)(1)(v)","Stack Point Air Emissions\n(kg) \n82.13(ee)(1)(v)"]
[null,null,null,"Controlled Substance (1)",null,null,null,null,null,{"$f":"IF(E13=\"\",\"\",IF(COUNTBLANK(F13:I13)>0,\"ROW INCOMPLETE\",\"\"))","v":""}]
[null,null,null,"Controlled Substance (2)",null,null,null,null,null,{"$f":"IF(E14=\"\",\"\",IF(COUNTBLANK(F14:I14)>0,\"ROW INCOMPLETE\",\"\"))","v":""}]
[null,null,null,"Controlled Substance (3)",null,null,null,null,null,{"$f":"IF(E15=\"\",\"\",IF(COUNTBLANK(F15:I15)>0,\"ROW INCOMPLETE\",\"\"))","v":""}]
[]
[null,null,null,"Product and Byproduct Information"]
[null,null,null,null,"Process Agent Name","Final Product Manufactured (1)\n82.13(ee)(1)(iv)","Amount of Final Product (1) Produced\n(kg)\n82.13(ee)(1)(iv)","Final Product Manufactured (2)\n82.13(ee)(1)(iv)","Amount of Final Product (2) Produced\n(kg)\n82.13(ee)(1)(iv)","Name of Byproduct (1)\n82.13(ee)(1)(iv)","Amount of Byproduct (1) Produced\n(kg)\n82.13(ee)(1)(iv)","Name of Byproduct (2)\n82.13(ee)(1)(iv)","Amount of Byproduct (2) Produced\n(kg)\n82.13(ee)(1)(iv)"]
[null,null,null,"Controlled Substance (1)",{"$f":"IF(E13=\"\",\"\",E13)","v":""},null,null,null,null,null,null,null,null,{"$f":"IF(E19=\"\",\"\",IF(COUNTBLANK(F19:M19)>0,\"ROW INCOMPLETE\",\"\"))","v":""}]
[null,null,null,"Controlled Substance (2)",{"$f":"IF(E14=\"\",\"\",E14)","v":""},null,null,null,null,null,null,null,null,{"$f":"IF(E20=\"\",\"\",IF(COUNTBLANK(F20:M20)>0,\"ROW INCOMPLETE\",\"\"))","v":""}]
[null,null,null,"Controlled Substance (3)",{"$f":"IF(E15=\"\",\"\",E15)","v":""},null,null,null,null,null,null,null,null,{"$f":"IF(E21=\"\",\"\",IF(COUNTBLANK(F21:M21)>0,\"ROW INCOMPLETE\",\"\"))","v":""}]

{"sheet":"Section 3","index":3,"n_rows":14,"n_cols":8,"rows_kept":14,"cut":false,"hidden":false,"merged":[[12,3,12,6],[8,3,8,6],[9,3,9,6],[11,3,11,6]]}
[]
[null,null,null,"U.S. Environmental Protection Agency"]
[null,null,null,{"$f":"'Section 1'!C3","v":"Class I Process Agent One-Time Report"}]
[]
[null,null,null,"Facility Name:",{"$f":"IF('Section 1'!$D$12=0,\"\",'Section 1'!$D$12)","v":""}]
[null,null,null,"Reporting Period:",{"$f":"IF('Section 1'!D11=0,\"\",'Section 1'!$D$11)","v":""}]
[]
[null,null,null,"Section 3: Substance Use Mitigation"]
[null,null,null,"Provide a description of technologies used or actions taken to minimized use or emissions of Class I controlled substances, including estimated emissions reductions. 82.13(ee)(1)(vi)"]
[null,null,null,null,null,null,null,{"$f":"IF(D10=0,1,0)","v":1}]
[]
[null,null,null,"Provide a description of Class I substance lifecycle (including percentages used as process agent and (1) retained within the process agent application, (2) consumed in the process agent application, (3) recovered after the process agent application, (4) emitted, and (5) entrained in the final product). 82.13(ee)(1)(cii)"]
[null,null,null,null,null,null,null,{"$f":"IF(D13=0,1,0)","v":1}]
[null,null,null,"x",null,null,"x"]

{"sheet":"Reference List","index":4,"n_rows":13,"n_cols":7,"rows_kept":13,"cut":false,"hidden":false,"merged":[[5,2,5,6],[7,2,7,6]]}
[]
[null,null,"U.S. Environmental Protection Agency"]
[null,null,{"$f":"'Section 1'!C3","v":"Class I Process Agent One-Time Report"}]
[null,null,"Reference List"]
[]
[null,null,"Chemical Name List: The table below lists the valid chemical names that may be used when entering data into Section 2 of this form. "]
[]
[null,null,"Chemical Name"]
[null,null,"CFC-12","CFC-114","CFC-214","Halon 1211","CH3CCL3"]
[null,null,"CFC-13","CFC-115","CFC-215","Halon 1301","HBFCs"]
[null,null,"CFC-111","CFC-211","CFC-216","Halon 2402"]
[null,null,"CFC-112","CFC-212","CFC-217","CBM"]
[null,null,"CFC-113","CFC-213","Halon 1202","CCL4"]

{"sheet":"Lists","index":5,"n_rows":55,"n_cols":6,"rows_kept":55,"cut":false,"hidden":true,"merged":[]}
[]
[null,"Chemical Name","Submission Type","Reporting Year","Current Year","States"]
[null,"CFC-12","Original Submission",2024,{"$f":"YEAR(TODAY())","v":2024},"Alaska"]
[null,"CFC-13","Re-Submittal",2025,null,"Alabama"]
[null,"CFC-111",null,2026,null,"Arkansas"]
[null,"CFC-112",null,2027,null,"Arizona"]
[null,"CFC-113",null,2028,null,"California"]
[null,"CFC-114",null,2029,null,"Colorado"]
[null,"CFC-115",null,2030,null,"Connecticut"]
[null,"CFC-211",null,2031,null,"District of Columbia"]
[null,"CFC-212",null,2032,null,"Delaware"]
[null,"CFC-213",null,2033,null,"Florida"]
[null,"CFC-214",null,2034,null,"Georgia"]
[null,"CFC-215",null,2035,null,"Hawaii"]
[null,"CFC-216",null,null,null,"Iowa"]
[null,"CFC-217",null,null,null,"Idaho"]
[null,"Halon 1202",null,null,null,"Illinois"]
[null,"Halon 1211",null,null,null,"Indiana"]
[null,"Halon 1301",null,null,null,"Kansas"]
[null,"Halon 2402",null,null,null,"Kentucky"]
[null,"CBM",null,null,null,"Louisiana"]
[null,"CCL4",null,null,null,"Massachusetts"]
[null,"CH3CCL3",null,null,null,"Maryland"]
[null,"HBFCs",null,null,null,"Maine"]
[null,null,null,null,null,"Michigan"]
[null,null,null,null,null,"Minnesota"]
[null,null,null,null,null,"Missouri"]
[null,null,null,null,null,"Mississippi"]
[null,null,null,null,null,"Montana"]
[null,null,null,null,null,"North Carolina"]
[null,null,null,null,null,"North Dakota"]
[null,null,null,null,null,"Nebraska"]
[null,null,null,null,null,"New Hampshire"]
[null,null,null,null,null,"New Jersey"]
[null,null,null,null,null,"New Mexico"]
[null,null,null,null,null,"Nevada"]
[null,null,null,null,null,"New York"]
[null,null,null,null,null,"Ohio"]
[null,null,null,null,null,"Oklahoma"]
[null,null,null,null,null,"Oregon"]
[null,null,null,null,null,"Pennsylvania"]
[null,null,null,null,null,"Puerto Rico"]
[null,null,null,null,null,"Rhode Island"]
[null,null,null,null,null,"South Carolina"]
[null,null,null,null,null,"South Dakota"]
[null,null,null,null,null,"Tennessee"]
[null,null,null,null,null,"Texas"]
[null,null,null,null,null,"Utah"]
[null,null,null,null,null,"Virginia"]
[null,null,null,null,null,"US Virgin Islands"]
[null,null,null,null,null,"Vermont"]
[null,null,null,null,null,"Washington"]
[null,null,null,null,null,"Wisconsin"]
[null,null,null,null,null,"West Virginia"]
[null,null,null,null,null,"Wyoming"]